[Event "Titled Tuesday Blitz May 2 Late 2023"]
[White "Aldokhin, Ivan"]
[Black "Grigoriants, Sergey"]
[WhiteFideId "24115720"]
[BlackFideId "4130804"]
[WhiteElo "2322"]
[BlackElo "2502"]
[Result "1-0"]
[Round "04"]
[TimeControl "180+2"]
[Date "2023.05.02"]
[WhiteClock "0:00:05"]
[BlackClock "0:00:01"]

1. e4 {[%clk 0:02:52]}  c5 {[%clk 0:02:57]} 2. Nf3 {[%clk 0:02:51]}  Nc6 {[%clk 0:02:57]} 3. d4 {[%clk 0:02:51]}  cxd4 {[%clk 0:02:57]} 4. Nxd4 {[%clk 0:02:52]}  e6 {[%clk 0:02:54]} 5. Nc3 {[%clk 0:02:52]}  a6 {[%clk 0:02:53]} 6. Nxc6 {[%clk 0:02:51]}  bxc6 {[%clk 0:02:52]} 7. Bd3 {[%clk 0:02:49]}  d5 {[%clk 0:02:53]} 8. Qe2 {[%clk 0:02:49]}  Nf6 {[%clk 0:02:53]} 9. Bf4 {[%clk 0:02:49]}  Be7 {[%clk 0:02:50]} 10. O-O {[%clk 0:02:49]}  O-O {[%clk 0:02:49]} 11. Rad1 {[%clk 0:02:50]}  a5 {[%clk 0:02:42]} 12. Rfe1 {[%clk 0:02:39]}  a4 {[%clk 0:02:34]} 13. a3 {[%clk 0:02:39]}  Qb6 {[%clk 0:02:29]} 14. Be5 {[%clk 0:02:35]}  Nd7 {[%clk 0:01:35]} 15. exd5 {[%clk 0:02:25]}  Nxe5 {[%clk 0:01:34]} 16. Qxe5 {[%clk 0:02:21]}  Bf6 {[%clk 0:01:32]} 17. Qe4 {[%clk 0:02:15]}  g6 {[%clk 0:01:28]} 18. dxe6 {[%clk 0:01:17]}  Bxe6 {[%clk 0:01:26]} 19. Nxa4 {[%clk 0:01:14]}  Qa5 {[%clk 0:01:22]} 20. b3 {[%clk 0:01:11]}  Rfe8 {[%clk 0:01:16]} 21. Qxc6 {[%clk 0:01:06]}  Kg7 {[%clk 0:01:09]} 22. Qc5 {[%clk 0:00:55]}  Qxc5 {[%clk 0:00:30]} 23. Nxc5 {[%clk 0:00:55]}  Rxa3 {[%clk 0:00:31]} 24. Nxe6+ {[%clk 0:00:54]}  Rxe6 {[%clk 0:00:30]} 25. Rxe6 {[%clk 0:00:53]}  fxe6 {[%clk 0:00:31]} 26. g3 {[%clk 0:00:50]}  Kf7 {[%clk 0:00:28]} 27. Re1 {[%clk 0:00:47]}  Ra1 {[%clk 0:00:26]} 28. Kf1 {[%clk 0:00:42]}  Ke7 {[%clk 0:00:25]} 29. Rxa1 {[%clk 0:00:35]}  Bxa1 {[%clk 0:00:26]} 30. Ke2 {[%clk 0:00:36]}  Kd6 {[%clk 0:00:25]} 31. Be4 {[%clk 0:00:33]}  Kc5 {[%clk 0:00:21]} 32. Kd3 {[%clk 0:00:32]}  Kb4 {[%clk 0:00:21]} 33. h4 {[%clk 0:00:29]}  e5 {[%clk 0:00:20]} 34. f3 {[%clk 0:00:20]}  Bc3 {[%clk 0:00:19]} 35. g4 {[%clk 0:00:17]}  Be1 {[%clk 0:00:17]} 36. h5 {[%clk 0:00:10]}  gxh5 {[%clk 0:00:17]} 37. gxh5 {[%clk 0:00:10]}  h6 {[%clk 0:00:18]} 38. Bh7 {[%clk 0:00:10]}  Bc3 {[%clk 0:00:12]} 39. Ke4 {[%clk 0:00:10]}  Kc5 {[%clk 0:00:12]} 40. Kd3 {[%clk 0:00:09]}  Kb4 {[%clk 0:00:11]} 41. Bg6 {[%clk 0:00:09]}  Bb2 {[%clk 0:00:09]} 42. Ke4 {[%clk 0:00:09]}  Kc5 {[%clk 0:00:09]} 43. Bf7 {[%clk 0:00:08]}  Bc3 {[%clk 0:00:08]} 44. Bc4 {[%clk 0:00:09]}  Bb2 {[%clk 0:00:06]} 45. Bd3 {[%clk 0:00:09]}  Bc3 {[%clk 0:00:06]} 46. Kf5 {[%clk 0:00:10]}  Kd6 {[%clk 0:00:05]} 47. Kg6 {[%clk 0:00:08]}  Bd2 {[%clk 0:00:06]} 48. b4 {[%clk 0:00:07]}  Kd5 {[%clk 0:00:03]} 49. b5 {[%clk 0:00:06]}  Kc5 {[%clk 0:00:04]} 50. Kf6 {[%clk 0:00:05]}  Bf4 {[%clk 0:00:03]} 51. Kf5 {[%clk 0:00:05]}  Kb6 {[%clk 0:00:03]} 52. Be2 {[%clk 0:00:03]}  Kc5 {[%clk 0:00:04]} 53. Ke6 {[%clk 0:00:03]}  Bg3 {[%clk 0:00:03]} 54. Bd3 {[%clk 0:00:03]}  Bf4 {[%clk 0:00:02]} 55. c4 {[%clk 0:00:03]}  Bg3 {[%clk 0:00:01]} 56. Bf1 {[%clk 0:00:04]}  Bf4 {[%clk 0:00:01]} 57. Kd7 {[%clk 0:00:04]}  Kb6 {[%clk 0:00:01]} 58. Bd3 {[%clk 0:00:04]}  Bg3 {[%clk 0:00:01]} 59. Be4 {[%clk 0:00:04]}  Bf4 {[%clk 0:00:01]} 60. Kd6 {[%clk 0:00:05]} 1-0


[Site "https://www.chess.com"]

[Event "Titled Tuesday Blitz May 2 Late 2023"]
[White "Suleymanli, Aydin"]
[Black "Djokic, Mihailo"]
[WhiteFideId "13413937"]
[BlackFideId "976440"]
[WhiteElo "2559"]
[BlackElo "2294"]
[Result "1-0"]
[Round "04"]
[TimeControl "180+2"]
[Date "2023.05.02"]
[WhiteClock "0:00:18"]
[BlackClock "0:00:39"]

1. e4 {[%clk 0:03:00]}  c5 {[%clk 0:02:58]} 2. Nf3 {[%clk 0:02:58]}  d6 {[%clk 0:02:59]} 3. a4 {[%clk 0:02:52]}  Nc6 {[%clk 0:02:52]} 4. d4 {[%clk 0:02:50]}  cxd4 {[%clk 0:02:53]} 5. Nxd4 {[%clk 0:02:50]}  g6 {[%clk 0:02:53]} 6. Nc3 {[%clk 0:02:47]}  Bg7 {[%clk 0:02:53]} 7. Be3 {[%clk 0:02:47]}  Nf6 {[%clk 0:02:53]} 8. f3 {[%clk 0:02:44]}  O-O {[%clk 0:02:53]} 9. Bc4 {[%clk 0:02:42]}  Bd7 {[%clk 0:02:46]} 10. O-O {[%clk 0:02:41]}  Rc8 {[%clk 0:02:45]} 11. Ba2 {[%clk 0:02:32]}  Ne5 {[%clk 0:02:37]} 12. Qe2 {[%clk 0:02:28]}  a6 {[%clk 0:02:23]} 13. a5 {[%clk 0:02:24]}  Qc7 {[%clk 0:02:11]} 14. Kh1 {[%clk 0:02:11]}  Nc4 {[%clk 0:02:03]} 15. Bxc4 {[%clk 0:02:11]}  Qxc4 {[%clk 0:02:03]} 16. Qf2 {[%clk 0:02:09]}  Qb4 {[%clk 0:01:56]} 17. Nb3 {[%clk 0:02:08]}  Qc4 {[%clk 0:01:35]} 18. Rfd1 {[%clk 0:02:05]}  Be6 {[%clk 0:01:34]} 19. Bb6 {[%clk 0:01:45]}  Nd7 {[%clk 0:01:28]} 20. Ra4 {[%clk 0:01:26]}  Nxb6 {[%clk 0:01:16]} 21. axb6 {[%clk 0:01:16]}  Qc6 {[%clk 0:01:12]} 22. Na5 {[%clk 0:01:14]}  Qd7 {[%clk 0:01:09]} 23. Ra3 {[%clk 0:01:10]}  Rc5 {[%clk 0:01:06]} 24. Qxc5 {[%clk 0:01:09]}  dxc5 {[%clk 0:01:03]} 25. Rxd7 {[%clk 0:01:09]}  Bxd7 {[%clk 0:01:03]} 26. Nxb7 {[%clk 0:01:07]}  Rb8 {[%clk 0:01:02]} 27. Nxc5 {[%clk 0:01:07]}  Rxb6 {[%clk 0:01:03]} 28. Nxd7 {[%clk 0:01:03]}  Rxb2 {[%clk 0:01:03]} 29. h3 {[%clk 0:00:57]}  Rxc2 {[%clk 0:01:03]} 30. Nd5 {[%clk 0:00:57]}  e6 {[%clk 0:00:59]} 31. Ne7+ {[%clk 0:00:55]}  Kh8 {[%clk 0:01:00]} 32. Rxa6 {[%clk 0:00:56]}  Bd4 {[%clk 0:00:58]} 33. Nc6 {[%clk 0:00:33]}  Bf2 {[%clk 0:00:48]} 34. Nde5 {[%clk 0:00:21]}  Bg3 {[%clk 0:00:44]} 35. Ra1 {[%clk 0:00:18]}  f6 {[%clk 0:00:45]} 36. Nf7+ {[%clk 0:00:17]}  Kg7 {[%clk 0:00:45]} 37. Nfd8 {[%clk 0:00:18]}  Bc7 {[%clk 0:00:38]} 38. Nxe6+ {[%clk 0:00:18]}  Kh6 {[%clk 0:00:37]} 39. Nxc7 {[%clk 0:00:19]}  Rxc6 {[%clk 0:00:37]} 40. Nd5 {[%clk 0:00:19]}  Kh5 {[%clk 0:00:37]} 41. Kh2 {[%clk 0:00:19]}  Kh4 {[%clk 0:00:37]} 42. Ra7 {[%clk 0:00:19]}  Kg5 {[%clk 0:00:38]} 43. Rxh7 {[%clk 0:00:18]}  f5 {[%clk 0:00:39]} 44. f4# {[%clk 0:00:18]} 1-0


[Site "https://www.chess.com"]

[Event "Titled Tuesday Blitz May 2 Late 2023"]
[White "Mekhitarian, Krikor Sevag"]
[Black "Aggelis, Nikolaos"]
[WhiteFideId "2107660"]
[BlackFideId "4213220"]
[WhiteElo "2604"]
[BlackElo "2189"]
[Result "1-0"]
[Round "04"]
[TimeControl "180+2"]
[Date "2023.05.02"]
[WhiteClock "0:00:59"]
[BlackClock "0:00:35"]

1. Nf3 {[%clk 0:03:00]}  d5 {[%clk 0:02:52]} 2. c4 {[%clk 0:03:01]}  d4 {[%clk 0:02:33]} 3. b4 {[%clk 0:03:00]}  a5 {[%clk 0:02:28]} 4. b5 {[%clk 0:02:55]}  g6 {[%clk 0:02:28]} 5. g3 {[%clk 0:02:51]}  Bg7 {[%clk 0:02:28]} 6. d3 {[%clk 0:02:52]}  Nf6 {[%clk 0:02:25]} 7. Bg2 {[%clk 0:02:51]}  O-O {[%clk 0:02:26]} 8. O-O {[%clk 0:02:49]}  Re8 {[%clk 0:02:25]} 9. a4 {[%clk 0:02:49]}  e5 {[%clk 0:02:25]} 10. Ba3 {[%clk 0:02:49]}  Nfd7 {[%clk 0:02:25]} 11. Nbd2 {[%clk 0:02:48]}  Bf8 {[%clk 0:02:24]} 12. Qc1 {[%clk 0:02:46]}  Bxa3 {[%clk 0:02:22]} 13. Qxa3 {[%clk 0:02:47]}  Qe7 {[%clk 0:02:20]} 14. Qxe7 {[%clk 0:02:47]}  Rxe7 {[%clk 0:02:20]} 15. Nb3 {[%clk 0:02:48]}  c5 {[%clk 0:02:07]} 16. e3 {[%clk 0:02:38]}  dxe3 {[%clk 0:01:58]} 17. fxe3 {[%clk 0:02:37]}  Ra7 {[%clk 0:01:55]} 18. Ng5 {[%clk 0:02:32]}  Kg7 {[%clk 0:01:44]} 19. Ne4 {[%clk 0:02:20]}  f5 {[%clk 0:01:33]} 20. Nd6 {[%clk 0:01:51]}  Nb6 {[%clk 0:01:30]} 21. Nxc5 {[%clk 0:01:49]}  N8d7 {[%clk 0:01:20]} 22. Nxc8 {[%clk 0:01:44]}  Nxc8 {[%clk 0:01:20]} 23. Nxb7 {[%clk 0:01:45]}  e4 {[%clk 0:01:17]} 24. Nd8 {[%clk 0:01:45]}  Re8 {[%clk 0:01:03]} 25. Nc6 {[%clk 0:01:45]}  Rc7 {[%clk 0:01:03]} 26. d4 {[%clk 0:01:38]}  Ncb6 {[%clk 0:01:01]} 27. Rfc1 {[%clk 0:01:36]}  Rec8 {[%clk 0:00:59]} 28. Bf1 {[%clk 0:01:27]}  Kf6 {[%clk 0:00:59]} 29. Kf2 {[%clk 0:01:24]}  Nb8 {[%clk 0:00:52]} 30. Nxb8 {[%clk 0:01:18]}  Rxb8 {[%clk 0:00:53]} 31. c5 {[%clk 0:01:18]}  Nd5 {[%clk 0:00:51]} 32. Bc4 {[%clk 0:01:09]}  Nb4 {[%clk 0:00:50]} 33. Ke2 {[%clk 0:01:07]}  Ke7 {[%clk 0:00:49]} 34. Kd2 {[%clk 0:01:04]}  Rd8 {[%clk 0:00:48]} 35. Kc3 {[%clk 0:01:02]}  Rdc8 {[%clk 0:00:45]} 36. Rab1 {[%clk 0:01:00]}  Ra7 {[%clk 0:00:41]} 37. Rxb4 {[%clk 0:01:00]}  axb4+ {[%clk 0:00:42]} 38. Kxb4 {[%clk 0:01:01]}  Rca8 {[%clk 0:00:42]} 39. Bb3 {[%clk 0:01:01]}  g5 {[%clk 0:00:37]} 40. b6 {[%clk 0:00:59]}  Ra5 {[%clk 0:00:35]} 41. b7 {[%clk 0:00:59]} 1-0


[Site "https://www.chess.com"]

[Event "Titled Tuesday Blitz May 2 Late 2023"]
[White "Bakalchuk, Johnatan"]
[Black "Kleiman, Jake"]
[WhiteFideId "2810301"]
[BlackFideId "2020041"]
[WhiteElo "2450"]
[BlackElo "2399"]
[Result "0-1"]
[Round "04"]
[TimeControl "180+2"]
[Date "2023.05.02"]
[WhiteClock "0:00:13"]
[BlackClock "0:00:18"]

1. e4 {[%clk 0:03:00]}  e5 {[%clk 0:02:59]} 2. Nc3 {[%clk 0:03:00]}  Nf6 {[%clk 0:02:59]} 3. f4 {[%clk 0:03:00]}  d5 {[%clk 0:02:59]} 4. fxe5 {[%clk 0:03:00]}  Nxe4 {[%clk 0:03:00]} 5. Nf3 {[%clk 0:03:01]}  Nc6 {[%clk 0:03:00]} 6. Bb5 {[%clk 0:03:00]}  Bg4 {[%clk 0:02:48]} 7. Qe2 {[%clk 0:02:57]}  Ng5 {[%clk 0:02:18]} 8. d4 {[%clk 0:02:27]}  Nxf3+ {[%clk 0:02:11]} 9. gxf3 {[%clk 0:02:28]}  Bf5 {[%clk 0:02:11]} 10. Be3 {[%clk 0:02:23]}  Qd7 {[%clk 0:01:53]} 11. O-O-O {[%clk 0:02:22]}  a6 {[%clk 0:01:50]} 12. Ba4 {[%clk 0:02:14]}  Bb4 {[%clk 0:01:45]} 13. Rhg1 {[%clk 0:01:57]}  Bxc3 {[%clk 0:01:33]} 14. bxc3 {[%clk 0:01:58]}  b5 {[%clk 0:01:32]} 15. Bb3 {[%clk 0:01:57]}  g6 {[%clk 0:01:03]} 16. Bg5 {[%clk 0:01:53]}  Nd8 {[%clk 0:00:44]} 17. h4 {[%clk 0:01:09]}  h5 {[%clk 0:00:34]} 18. Bf6 {[%clk 0:01:05]}  Rg8 {[%clk 0:00:34]} 19. f4 {[%clk 0:00:38]}  Ne6 {[%clk 0:00:34]} 20. Rdf1 {[%clk 0:00:34]}  a5 {[%clk 0:00:30]} 21. a3 {[%clk 0:00:35]}  Qc6 {[%clk 0:00:25]} 22. Kb2 {[%clk 0:00:33]}  Kd7 {[%clk 0:00:21]} 23. Qf3 {[%clk 0:00:25]}  Be4 {[%clk 0:00:21]} 24. Qh3 {[%clk 0:00:25]}  b4 {[%clk 0:00:19]} 25. cxb4 {[%clk 0:00:19]}  axb4 {[%clk 0:00:20]} 26. axb4 {[%clk 0:00:20]}  Rgb8 {[%clk 0:00:20]} 27. f5 {[%clk 0:00:16]}  gxf5 {[%clk 0:00:19]} 28. Rxf5 {[%clk 0:00:13]}  Rxb4 {[%clk 0:00:19]} 29. Rxh5 {[%clk 0:00:13]}  Qxc2# {[%clk 0:00:18]} 0-1


[Site "https://www.chess.com"]

[Event "Titled Tuesday Blitz May 2 Late 2023"]
[White "Wieczorek, Zbigniew"]
[Black "Kosakowski, Jakub"]
[WhiteFideId "1102001"]
[BlackFideId "1185080"]
[WhiteElo "2150"]
[BlackElo "2488"]
[Result "0-1"]
[Round "04"]
[TimeControl "180+2"]
[Date "2023.05.02"]
[WhiteClock "0:00:03"]
[BlackClock "0:01:08"]

1. Nf3 {[%clk 0:02:58]}  d5 {[%clk 0:02:32]} 2. g3 {[%clk 0:02:57]}  Nd7 {[%clk 0:02:32]} 3. d4 {[%clk 0:02:56]}  Nb6 {[%clk 0:02:33]} 4. Bg2 {[%clk 0:02:56]}  Bf5 {[%clk 0:02:33]} 5. Nc3 {[%clk 0:02:18]}  e6 {[%clk 0:02:28]} 6. O-O {[%clk 0:02:14]}  h6 {[%clk 0:02:28]} 7. Ne5 {[%clk 0:02:01]}  Nf6 {[%clk 0:02:28]} 8. b3 {[%clk 0:01:33]}  Be7 {[%clk 0:02:22]} 9. Bb2 {[%clk 0:01:33]}  O-O {[%clk 0:02:22]} 10. a4 {[%clk 0:01:30]}  a5 {[%clk 0:02:21]} 11. Rc1 {[%clk 0:01:25]}  Bh7 {[%clk 0:02:20]} 12. Re1 {[%clk 0:01:22]}  Rc8 {[%clk 0:02:19]} 13. e4 {[%clk 0:01:15]}  Bb4 {[%clk 0:02:19]} 14. exd5 {[%clk 0:00:41]}  exd5 {[%clk 0:02:20]} 15. Re2 {[%clk 0:00:27]}  Re8 {[%clk 0:02:17]} 16. Na2 {[%clk 0:00:20]}  Bf8 {[%clk 0:02:03]} 17. Bc3 {[%clk 0:00:20]}  Ra8 {[%clk 0:01:22]} 18. Qe1 {[%clk 0:00:17]}  Nc8 {[%clk 0:01:22]} 19. Bxa5 {[%clk 0:00:16]}  Nd6 {[%clk 0:01:23]} 20. Bd2 {[%clk 0:00:15]}  Nde4 {[%clk 0:01:21]} 21. Be3 {[%clk 0:00:14]}  Bd6 {[%clk 0:01:20]} 22. f3 {[%clk 0:00:13]}  Ng5 {[%clk 0:01:19]} 23. h4 {[%clk 0:00:13]}  Ne6 {[%clk 0:01:19]} 24. c3 {[%clk 0:00:11]}  c5 {[%clk 0:01:19]} 25. Rd1 {[%clk 0:00:09]}  cxd4 {[%clk 0:01:17]} 26. cxd4 {[%clk 0:00:09]}  Qb6 {[%clk 0:01:17]} 27. Qc3 {[%clk 0:00:05]}  Rac8 {[%clk 0:01:17]} 28. Qb2 {[%clk 0:00:04]}  Re7 {[%clk 0:01:07]} 29. Rde1 {[%clk 0:00:04]}  Rec7 {[%clk 0:01:07]} 30. Bf2 {[%clk 0:00:04]}  Rc2 {[%clk 0:01:07]} 31. Rxc2 {[%clk 0:00:04]}  Rxc2 {[%clk 0:01:08]} 32. Qb1 {[%clk 0:00:04]}  Rxf2 {[%clk 0:01:08]} 33. Kxf2 {[%clk 0:00:03]}  Bxb1 {[%clk 0:01:08]} 0-1


[Site "https://www.chess.com"]

[Event "Titled Tuesday Blitz May 2 Late 2023"]
[White "Yoo, Christopher Woojin"]
[Black "Poltorak, Sebastian"]
[WhiteFideId "30909694"]
[BlackFideId "1199498"]
[WhiteElo "2519"]
[BlackElo "2195"]
[Result "1-0"]
[Round "04"]
[TimeControl "180+2"]
[Date "2023.05.02"]
[WhiteClock "0:00:13"]
[BlackClock "0:00:15"]

1. g3 {[%clk 0:03:00]}  c5 {[%clk 0:02:58]} 2. Bg2 {[%clk 0:03:00]}  Nc6 {[%clk 0:02:59]} 3. Nf3 {[%clk 0:03:00]}  d5 {[%clk 0:02:59]} 4. O-O {[%clk 0:03:01]}  e5 {[%clk 0:02:57]} 5. d3 {[%clk 0:03:01]}  f6 {[%clk 0:02:57]} 6. c4 {[%clk 0:02:57]}  d4 {[%clk 0:02:53]} 7. e3 {[%clk 0:02:56]}  Bd6 {[%clk 0:02:47]} 8. exd4 {[%clk 0:02:57]}  cxd4 {[%clk 0:02:47]} 9. Na3 {[%clk 0:02:43]}  a6 {[%clk 0:02:26]} 10. Nc2 {[%clk 0:02:43]}  Nge7 {[%clk 0:02:25]} 11. b4 {[%clk 0:02:41]}  O-O {[%clk 0:02:17]} 12. Rb1 {[%clk 0:02:37]}  Bg4 {[%clk 0:02:04]} 13. h3 {[%clk 0:02:36]}  Bh5 {[%clk 0:02:01]} 14. g4 {[%clk 0:02:36]}  Bg6 {[%clk 0:01:57]} 15. Nh4 {[%clk 0:02:36]}  Bf7 {[%clk 0:01:55]} 16. a4 {[%clk 0:02:32]}  g5 {[%clk 0:01:43]} 17. Nf3 {[%clk 0:02:28]}  b5 {[%clk 0:01:35]} 18. axb5 {[%clk 0:02:22]}  axb5 {[%clk 0:01:35]} 19. cxb5 {[%clk 0:02:23]}  Na7 {[%clk 0:01:35]} 20. Na3 {[%clk 0:02:20]}  Rb8 {[%clk 0:01:33]} 21. h4 {[%clk 0:01:45]}  h6 {[%clk 0:01:30]} 22. hxg5 {[%clk 0:01:43]}  hxg5 {[%clk 0:01:29]} 23. b6 {[%clk 0:01:19]}  Rxb6 {[%clk 0:01:24]} 24. Bd2 {[%clk 0:01:16]}  Nd5 {[%clk 0:01:13]} 25. Nc4 {[%clk 0:01:16]}  Rb8 {[%clk 0:01:13]} 26. Qa4 {[%clk 0:01:14]}  Nb5 {[%clk 0:01:10]} 27. Nxd6 {[%clk 0:00:55]}  Qxd6 {[%clk 0:01:08]} 28. Rbe1 {[%clk 0:00:43]}  Nbc3 {[%clk 0:01:05]} 29. Qa1 {[%clk 0:00:43]}  Rxb4 {[%clk 0:01:02]} 30. Qa3 {[%clk 0:00:38]}  Rfb8 {[%clk 0:01:01]} 31. Nh2 {[%clk 0:00:30]}  Qd7 {[%clk 0:00:53]} 32. Ra1 {[%clk 0:00:25]}  Ne2+ {[%clk 0:00:51]} 33. Kh1 {[%clk 0:00:25]}  Nef4 {[%clk 0:00:52]} 34. Bxb4 {[%clk 0:00:23]}  Rxb4 {[%clk 0:00:47]} 35. Be4 {[%clk 0:00:21]}  Kg7 {[%clk 0:00:40]} 36. Qa8 {[%clk 0:00:20]}  Nc7 {[%clk 0:00:31]} 37. Qa7 {[%clk 0:00:18]}  Bd5 {[%clk 0:00:30]} 38. Rfc1 {[%clk 0:00:17]}  Bxe4+ {[%clk 0:00:29]} 39. dxe4 {[%clk 0:00:18]}  Nfe6 {[%clk 0:00:29]} 40. Ra6 {[%clk 0:00:16]}  d3 {[%clk 0:00:17]} 41. Rxe6 {[%clk 0:00:15]}  d2 {[%clk 0:00:18]} 42. Rxc7 {[%clk 0:00:15]}  d1=Q+ {[%clk 0:00:18]} 43. Kg2 {[%clk 0:00:15]}  Rd4 {[%clk 0:00:14]} 44. Rxd7+ {[%clk 0:00:14]}  Rxd7 {[%clk 0:00:15]} 45. Re7+ {[%clk 0:00:13]}  Rxe7 {[%clk 0:00:15]} 46. Qxe7+ {[%clk 0:00:13]}  Kg6 {[%clk 0:00:16]} 47. Qe6 {[%clk 0:00:13]}  Qd3 {[%clk 0:00:16]} 48. Qf5+ {[%clk 0:00:14]}  Kg7 {[%clk 0:00:16]} 49. Nf1 {[%clk 0:00:14]}  Qd1 {[%clk 0:00:15]} 50. Ng3 {[%clk 0:00:15]}  Qd6 {[%clk 0:00:14]} 51. Nh5+ {[%clk 0:00:15]}  Kf7 {[%clk 0:00:15]} 52. Qh7+ {[%clk 0:00:13]}  Kf8 {[%clk 0:00:15]} 53. Qg7+ {[%clk 0:00:13]} 1-0


[Site "https://www.chess.com"]

[Event "Titled Tuesday Blitz May 2 Late 2023"]
[White "Rostomyan, Mikayel"]
[Black "Pakleza, Zbigniew"]
[WhiteFideId "13313754"]
[BlackFideId "1119290"]
[WhiteElo "2061"]
[BlackElo "2410"]
[Result "0-1"]
[Round "04"]
[TimeControl "180+2"]
[Date "2023.05.02"]
[WhiteClock "0:00:01"]
[BlackClock "0:00:03"]

1. d4 {[%clk 0:03:00]}  d6 {[%clk 0:02:57]} 2. Nf3 {[%clk 0:02:59]}  Bg4 {[%clk 0:02:57]} 3. e3 {[%clk 0:02:58]}  Nf6 {[%clk 0:02:57]} 4. Be2 {[%clk 0:02:58]}  e6 {[%clk 0:02:58]} 5. b3 {[%clk 0:02:58]}  Be7 {[%clk 0:02:58]} 6. Bb2 {[%clk 0:02:59]}  O-O {[%clk 0:02:58]} 7. O-O {[%clk 0:02:59]}  Nbd7 {[%clk 0:02:59]} 8. c4 {[%clk 0:03:00]}  c6 {[%clk 0:02:59]} 9. Nc3 {[%clk 0:03:00]}  d5 {[%clk 0:02:59]} 10. Nd2 {[%clk 0:02:59]}  Bf5 {[%clk 0:02:57]} 11. Bf3 {[%clk 0:02:57]}  Bg6 {[%clk 0:02:50]} 12. e4 {[%clk 0:02:54]}  Nb6 {[%clk 0:02:50]} 13. Re1 {[%clk 0:02:21]}  h6 {[%clk 0:02:40]} 14. Qe2 {[%clk 0:02:02]}  Re8 {[%clk 0:02:29]} 15. Rad1 {[%clk 0:01:59]}  a5 {[%clk 0:02:26]} 16. e5 {[%clk 0:01:53]}  Nfd7 {[%clk 0:02:24]} 17. Bh5 {[%clk 0:01:45]}  Nf8 {[%clk 0:02:09]} 18. Bxg6 {[%clk 0:01:39]}  Nxg6 {[%clk 0:02:09]} 19. g3 {[%clk 0:01:40]}  dxc4 {[%clk 0:02:01]} 20. Nxc4 {[%clk 0:01:36]}  Nd5 {[%clk 0:01:55]} 21. Ne4 {[%clk 0:01:34]}  a4 {[%clk 0:01:39]} 22. Ncd6 {[%clk 0:01:26]}  Bxd6 {[%clk 0:01:37]} 23. Nxd6 {[%clk 0:01:27]}  Re7 {[%clk 0:01:36]} 24. h4 {[%clk 0:01:09]}  Rd7 {[%clk 0:01:36]} 25. h5 {[%clk 0:00:50]}  Nge7 {[%clk 0:01:34]} 26. Qg4 {[%clk 0:00:48]}  Rxd6 {[%clk 0:01:13]} 27. exd6 {[%clk 0:00:47]}  Qxd6 {[%clk 0:01:13]} 28. Bc1 {[%clk 0:00:33]}  Nf5 {[%clk 0:01:13]} 29. Bf4 {[%clk 0:00:29]}  Nxf4 {[%clk 0:00:48]} 30. Qxf4 {[%clk 0:00:29]}  Qxf4 {[%clk 0:00:49]} 31. gxf4 {[%clk 0:00:29]}  axb3 {[%clk 0:00:48]} 32. axb3 {[%clk 0:00:30]}  Ra3 {[%clk 0:00:43]} 33. Rd3 {[%clk 0:00:27]}  Ra5 {[%clk 0:00:42]} 34. Re5 {[%clk 0:00:24]}  Ra1+ {[%clk 0:00:37]} 35. Kg2 {[%clk 0:00:24]}  Kf8 {[%clk 0:00:28]} 36. b4 {[%clk 0:00:24]}  Rb1 {[%clk 0:00:27]} 37. b5 {[%clk 0:00:24]}  Ke7 {[%clk 0:00:20]} 38. bxc6 {[%clk 0:00:24]}  bxc6 {[%clk 0:00:21]} 39. Ra5 {[%clk 0:00:21]}  Rb7 {[%clk 0:00:19]} 40. Kf3 {[%clk 0:00:17]}  Kd6 {[%clk 0:00:18]} 41. Ke4 {[%clk 0:00:16]}  Rb2 {[%clk 0:00:14]} 42. Kf3 {[%clk 0:00:16]}  Rb4 {[%clk 0:00:13]} 43. Ra7 {[%clk 0:00:12]}  f6 {[%clk 0:00:07]} 44. Ke4 {[%clk 0:00:07]}  Rb2 {[%clk 0:00:07]} 45. Kf3 {[%clk 0:00:07]}  Rb4 {[%clk 0:00:07]} 46. Ke4 {[%clk 0:00:07]}  Rb1 {[%clk 0:00:08]} 47. Ra6 {[%clk 0:00:06]}  Rh1 {[%clk 0:00:06]} 48. Rc3 {[%clk 0:00:06]}  Ne7 {[%clk 0:00:07]} 49. Rc5 {[%clk 0:00:03]}  Re1+ {[%clk 0:00:06]} 50. Kf3 {[%clk 0:00:04]}  Rd1 {[%clk 0:00:06]} 51. Ke3 {[%clk 0:00:04]}  Rh1 {[%clk 0:00:06]} 52. Kf3 {[%clk 0:00:04]}  f5 {[%clk 0:00:05]} 53. Ra7 {[%clk 0:00:04]}  Rxh5 {[%clk 0:00:04]} 54. Rb7 {[%clk 0:00:02]}  Rh3+ {[%clk 0:00:04]} 55. Ke2 {[%clk 0:00:02]}  Nd5 {[%clk 0:00:04]} 56. Rxg7 {[%clk 0:00:01]}  Nxf4+ {[%clk 0:00:04]} 57. Kd2 {[%clk 0:00:02]}  Rd3+ {[%clk 0:00:04]} 58. Kc2 {[%clk 0:00:02]}  Rxd4 {[%clk 0:00:05]} 59. Ra5 {[%clk 0:00:02]}  Nd5 {[%clk 0:00:05]} 60. Rg6 {[%clk 0:00:01]}  h5 {[%clk 0:00:05]} 61. Ra8 {[%clk 0:00:01]}  Rf4 {[%clk 0:00:04]} 62. Rh6 {[%clk 0:00:02]}  Rxf2+ {[%clk 0:00:04]} 63. Kd3 {[%clk 0:00:02]}  Rh2 {[%clk 0:00:04]} 64. Re8 {[%clk 0:00:03]}  Nf4+ {[%clk 0:00:03]} 65. Ke3 {[%clk 0:00:03]}  Rh4 {[%clk 0:00:03]} 66. Kf3 {[%clk 0:00:03]}  Ke5 {[%clk 0:00:03]} 67. Kg3 {[%clk 0:00:03]}  Rg4+ {[%clk 0:00:03]} 68. Kf3 {[%clk 0:00:02]}  h4 {[%clk 0:00:04]} 69. Ra8 {[%clk 0:00:02]}  Rg3+ {[%clk 0:00:04]} 70. Kf2 {[%clk 0:00:02]}  Rg2+ {[%clk 0:00:04]} 71. Kf3 {[%clk 0:00:02]}  Rg3+ {[%clk 0:00:05]} 72. Kf2 {[%clk 0:00:03]}  Rh3 {[%clk 0:00:06]} 73. Ra5+ {[%clk 0:00:02]}  Nd5 {[%clk 0:00:06]} 74. Rh8 {[%clk 0:00:02]}  Rh2+ {[%clk 0:00:05]} 75. Kg1 {[%clk 0:00:01]}  Rh3 {[%clk 0:00:06]} 76. Ra4 {[%clk 0:00:02]}  Rg3+ {[%clk 0:00:05]} 77. Kh2 {[%clk 0:00:02]}  Rb3 {[%clk 0:00:05]} 78. Rhxh4 {[%clk 0:00:02]}  Rb2+ {[%clk 0:00:06]} 79. Kg1 {[%clk 0:00:03]}  c5 {[%clk 0:00:06]} 80. Rh6 {[%clk 0:00:03]}  Nf4 {[%clk 0:00:05]} 81. Ra5 {[%clk 0:00:03]}  Rc2 {[%clk 0:00:05]} 82. Rh8 {[%clk 0:00:03]}  Nd3 {[%clk 0:00:04]} 83. Re8 {[%clk 0:00:02]}  f4 {[%clk 0:00:04]} 84. Ra6 {[%clk 0:00:02]}  f3 {[%clk 0:00:03]} 85. Raxe6+ {[%clk 0:00:02]}  Kd4 {[%clk 0:00:04]} 86. Rd6+ {[%clk 0:00:02]}  Kc3 {[%clk 0:00:03]} 87. Re3 {[%clk 0:00:02]}  f2+ {[%clk 0:00:04]} 88. Kg2 {[%clk 0:00:02]}  c4 {[%clk 0:00:04]} 89. Rf6 {[%clk 0:00:01]}  Rc1 {[%clk 0:00:03]} 0-1


[Site "https://www.chess.com"]